fUSD/lending_fUSD_20250521
["ID","MTS","AMOUNT","RATE_DAILY","PERIOD"]
[361835022,1747827074074,-420.0,0.00034246,5]
[361835023,1747827074083,-593.9,0.00034246,5]
[361835024,1747827074093,-5549.41,0.00034246,5]
[361835025,1747827074103,-420.0,0.00034246,5]
[361835026,1747827074112,-420.0,0.00034246,5]
[361835027,1747827074122,-420.0,0.00034246,5]
[361835028,1747827074131,-254.36342211,0.00034246,5]
[361835029,1747827074141,-638.11,0.00034246,2]
[361835030,1747827074151,-420.0,0.00034246,5]
[361835031,1747827074162,-2012.33,0.00034246,5]
[361835032,1747827074172,-2891.24,0.00034246,5]
[361835033,1747827074181,-420.0,0.00034246,5]
[361835034,1747827074191,-420.0,0.00034246,5]
[361835035,1747827074200,-420.0,0.00034246,5]
[361835036,1747827074210,-420.0,0.00034246,5]
[361835037,1747827074219,-420.0,0.00034246,5]
[361835038,1747827074229,-3346.56,0.00034246,5]
[361835039,1747827074239,-709.25,0.00034246,5]
[361835040,1747827074248,-420.0,0.00034246,5]
[361835041,1747827074258,-420.0,0.00034246,5]
[361835042,1747827074267,-420.63,0.00034246,5]
[361835043,1747827074276,-420.0,0.00034246,5]
[361835044,1747827074286,-420.0,0.00034246,5]
[361835045,1747827074295,-420.0,0.00034246,5]
[361835046,1747827074305,-1095.31,0.00034246,5]
[361835047,1747827074315,-470.99,0.00034246,5]
[361835048,1747827074325,-451.82,0.00034246,5]
[361835049,1747827074334,-426.33,0.00034246,5]
[361835050,1747827074343,-1236.71,0.00034246,5]
[361835051,1747827074353,-2495.64,0.00034246,5]
[361835052,1747827074363,-420.0,0.00034246,5]
[361835053,1747827074373,-420.0,0.00034246,5]
[361835054,1747827074383,-420.0,0.00034246,5]
[361835055,1747827074393,-1160.66,0.00034246,5]
[361835056,1747827074403,-420.0,0.00034246,5]
[361835057,1747827074412,-420.0,0.00034246,5]
[361835058,1747827074422,-4059.65,0.00034246,5]
[361835059,1747827074432,-420.0,0.00034246,5]
[361835060,1747827074442,-561.7,0.00034246,5]
[361835061,1747827074452,-420.0,0.00034246,5]
[361835062,1747827074462,-420.0,0.00034246,5]
[361835063,1747827074472,-6775.14,0.00034246,5]
[361835064,1747827074482,-420.0,0.00034246,5]
[361835065,1747827074493,-3582.79,0.00034246,5]
[361835066,1747827074504,-420.0,0.00034246,2]
[361835067,1747827074515,-477.4,0.00034246,5]
[361835068,1747827074526,-420.0,0.00034246,5]
[361835069,1747827074536,-420.0,0.00034246,5]
[361835070,1747827074546,-1722.63,0.00034246,5]
[361835071,1747827074557,-420.0,0.00034246,5]
[361835072,1747827074566,-1143.17,0.00034246,5]
[361835073,1747827074578,-1654.14,0.00034246,5]
[361835074,1747827074587,-567.49,0.00034246,5]
[361835075,1747827074597,-471.02,0.00034246,5]
[361835076,1747827074607,-933.58,0.00034246,5]
[361835077,1747827074616,-2021.44,0.00034246,5]
[361835078,1747827074625,-420.0,0.00034246,5]
[361835079,1747827074635,-420.0,0.00034246,5]
[361835080,1747827074645,-4350.06,0.00034246,5]
[361835081,1747827074655,-749.3,0.00034246,5]
[361835082,1747827074664,-814.46,0.00034246,5]
[361835083,1747827074674,-801.9,0.00034246,5]
[361835084,1747827074684,-550.14936438,0.00034246,5]
[361835085,1747827074694,-587.68,0.00034246,5]
[361835086,1747827074704,-2767.02,0.00034246,5]
[361835087,1747827074715,-420.0,0.00034246,5]
[361835088,1747827074726,-202.97576782,0.00034329,30]
[361835089,1747827074735,-856.45402615,0.0003442,2]
[361835090,1747827074745,-304.28,0.00034424,2]
[361835091,1747827074755,-304.48,0.00034424,2]
[361835092,1747827074765,-187.44423182,0.00034495,2]
[361835093,1747827074774,-479.0,0.00034518,5]
[361835094,1747827074784,-500.0,0.00034519,5]
[361835095,1747827074867,-500.0,0.00034519,5]
[361835096,1747827074879,-512.82657769,0.0003452,5]
[361835097,1747827074890,-420.0,0.0003452,5]
[361835098,1747827074899,-420.0,0.0003452,5]
[361835099,1747827074909,-420.0,0.0003452,5]
[361835100,1747827074919,-310.35870802,0.0003452,5]
[361835101,1747827074928,-852.08,0.0003452,5]
[361835102,1747827074938,-838.29,0.0003452,5]
[361835103,1747827074948,-756.34,0.0003452,5]
[361835104,1747827074957,-456.81,0.0003452,5]
[361835105,1747827074967,-420.0,0.0003452,5]
[361835106,1747827074976,-480.11,0.0003452,5]
[361835107,1747827074986,-420.0,0.0003452,5]
[361835108,1747827074995,-420.0,0.0003452,5]
[361835109,1747827075004,-803.54,0.0003452,5]
[361835110,1747827075013,-1218.18,0.0003452,5]
[361835111,1747827075023,-942.88,0.0003452,5]
[361835112,1747827075032,-797.13,0.0003452,5]
[361835113,1747827075042,-420.0,0.0003452,5]
[361835114,1747827075051,-420.0,0.0003452,5]
[361835115,1747827075061,-1263.34,0.0003452,5]
[361835116,1747827075070,-420.0,0.0003452,5]
[361835117,1747827075080,-420.0,0.0003452,5]
[361835118,1747827075090,-599.61,0.0003452,5]
[361835119,1747827075099,-1887.18,0.0003452,5]
[361835120,1747827075108,-537.6,0.0003452,5]
[361835121,1747827075118,-420.0,0.0003452,5]
[361835122,1747827075127,-420.0,0.0003452,5]
[361835123,1747827075136,-420.0,0.0003452,5]
[361835124,1747827075145,-189.71803013,0.0003452,5]
[361835125,1747827075154,-420.0,0.0003452,5]
[361835126,1747827075164,-995.6,0.0003452,5]
[361835127,1747827075173,-420.0,0.0003452,5]
[361835128,1747827075183,-420.0,0.0003452,5]
[361835129,1747827075192,-420.0,0.0003452,5]
[361835130,1747827075202,-692.22,0.0003452,5]
[361835131,1747827075211,-420.0,0.0003452,5]
[361835132,1747827075221,-584.19,0.0003452,5]
[361835133,1747827075230,-439.17770669,0.0003452,5]
[361835134,1747827075241,-420.0,0.0003452,5]
[361835135,1747827075251,-420.0,0.0003452,5]
[361835136,1747827075260,-847.72,0.0003452,5]
[361835137,1747827075269,-674.03,0.0003452,5]
[361835138,1747827075279,-420.0,0.0003452,5]
[361835139,1747827075289,-627.96,0.0003452,5]
[361835140,1747827075298,-420.0,0.0003452,5]
[361835141,1747827075307,-488.70599512,0.0003452,5]
[361835142,1747827075316,-524.74,0.0003452,5]
[361835143,1747827075325,-420.0,0.0003452,5]
[361835144,1747827075335,-420.0,0.0003452,5]
[361835145,1747827075344,-1128.54,0.0003452,5]
[361835146,1747827075353,-420.0,0.0003452,5]
[361835147,1747827075362,-814.71,0.0003452,5]
[361835148,1747827075372,-428.94,0.0003452,5]
[361835149,1747827075381,-182.15025898,0.0003452,5]
[361835150,1747827075390,-272.79874952,0.0003452,5]
[361835151,1747827075400,-1370.32,0.0003452,5]
[361835152,1747827075409,-420.0,0.0003452,5]
[361835153,1747827075418,-420.0,0.0003452,5]
[361835154,1747827075427,-174.34510685,0.0003452,5]
[361835155,1747827075437,-574.94,0.0003452,5]
[361835156,1747827075446,-455.14,0.0003452,5]
[361835157,1747827075456,-420.0,0.0003452,5]
[361835158,1747827075466,-1337.7,0.0003452,5]
[361835159,1747827075475,-478.34,0.0003452,5]
[361835160,1747827075485,-420.0,0.0003452,5]
[361835161,1747827075495,-504.02,0.0003452,5]
[361835162,1747827075506,-420.0,0.0003452,5]
[361835163,1747827075516,-565.8,0.0003452,5]
[361835164,1747827075529,-728.55,0.0003452,5]
[361835165,1747827075539,-420.0,0.0003452,5]
[361835166,1747827075549,-732.9,0.0003452,5]
[361835167,1747827075558,-420.0,0.0003452,5]
[361835168,1747827075567,-1165.23,0.0003452,5]
[361835169,1747827075577,-1378.94,0.0003452,5]
[361835170,1747827075587,-2721.26,0.0003452,5]
[361835171,1747827075596,-1472.56,0.0003452,5]
[361835172,1747827075606,-420.0,0.0003452,5]
[361835173,1747827075615,-815.36,0.0003452,5]
[361835174,1747827075625,-420.0,0.0003452,5]
[361835175,1747827075635,-3421.67,0.0003452,5]
[361835176,1747827075645,-420.0,0.0003452,5]
[361835177,1747827075655,-420.0,0.0003452,5]
[361835178,1747827075665,-420.0,0.0003452,5]
[361835179,1747827075675,-420.0,0.0003452,5]
[361835180,1747827075685,-420.0,0.0003452,5]
[361835181,1747827075694,-2581.6,0.0003452,5]
[361835182,1747827075704,-3315.32,0.0003452,5]
[361835183,1747827075717,-1137.48,0.0003452,5]
[361835184,1747827075727,-1399.99,0.0003452,5]
[361835185,1747827075736,-2580.06,0.0003452,5]
[361835186,1747827075747,-594.98,0.0003452,5]
[361835187,1747827075758,-1980.3,0.0003452,5]
[361835188,1747827075768,-2964.03,0.0003452,5]
[361835189,1747827075778,-420.0,0.0003452,5]
[361835190,1747827075788,-420.0,0.0003452,5]
[361835191,1747827075798,-461.83,0.0003452,5]
[361835192,1747827075808,-1561.77,0.0003452,5]
[361835193,1747827075819,-420.0,0.0003452,5]
[361835194,1747827075828,-950.46,0.0003452,5]
[361835195,1747827075838,-1769.8,0.0003452,5]
[361835196,1747827075847,-498.42,0.0003452,5]
[361835197,1747827075857,-1036.55,0.0003452,5]
[361835198,1747827075868,-934.39,0.0003452,5]
[361835199,1747827075878,-3529.11,0.0003452,5]
[361835200,1747827075888,-1927.57,0.0003452,5]
[361835201,1747827075898,-1266.55,0.0003452,5]
[361835202,1747827075908,-1455.7,0.0003452,5]
[361835203,1747827075917,-2836.71,0.0003452,5]
[361835204,1747827075927,-760.46,0.0003452,5]
[361835205,1747827075938,-1060.83,0.0003452,5]
[361835206,1747827075948,-6149.49,0.0003452,5]
[361835207,1747827075958,-1097.74,0.0003452,5]
[361835208,1747827075968,-879.61,0.0003452,5]
[361835209,1747827075977,-420.0,0.0003452,5]
[361835210,1747827075987,-1674.91,0.0003452,5]
[361835211,1747827075997,-1406.72,0.0003452,5]
[361835212,1747827076007,-867.9,0.0003452,5]
[361835213,1747827076017,-526.8,0.0003452,5]
[361835214,1747827076028,-420.0,0.0003452,5]
[361835215,1747827076037,-950.88,0.0003452,5]
[361835216,1747827076047,-416.29896196,0.0003452,5]
[361835217,1747827076056,-882.4,0.0003452,5]
[361835218,1747827076066,-800.16,0.0003452,5]
[361835219,1747827076076,-504.22,0.0003452,5]
[361835220,1747827076085,-1081.43,0.0003452,5]
[361835221,1747827076095,-460.09,0.0003452,5]
[361835222,1747827076105,-420.0,0.0003452,5]
[361835223,1747827076114,-3043.74,0.0003452,5]
[361835224,1747827076123,-420.0,0.0003452,5]
[361835225,1747827076132,-3632.54,0.0003452,5]
[361835226,1747827076143,-1270.86,0.0003452,5]
[361835227,1747827076152,-1956.56,0.0003452,5]
[361835228,1747827076161,-930.2,0.0003452,5]
[361835229,1747827076170,-420.0,0.0003452,5]
[361835230,1747827076180,-441.20443837,0.0003452,5]
[361835231,1747827076189,-420.0,0.0003452,5]
[361835232,1747827076198,-2005.74,0.0003452,5]
[361835233,1747827076208,-366.62990655,0.0003452,5]
[361835234,1747827076217,-456.75710009,0.0003452,5]
[361835235,1747827076227,-420.0,0.0003452,5]
[361835236,1747827076237,-420.0,0.0003452,5]
[361835237,1747827076247,-420.0,0.0003452,5]
[361835238,1747827076256,-420.0,0.0003452,5]
[361835239,1747827076266,-420.0,0.0003452,5]
[361835240,1747827076276,-420.0,0.0003452,5]
[361835241,1747827076285,-1347.5,0.0003452,5]
[361835242,1747827076295,-420.0,0.0003452,5]
[361835243,1747827076304,-607.7,0.0003452,5]
[361835244,1747827076314,-1108.97,0.0003452,5]
[361835245,1747827076323,-602.41,0.0003452,5]
[361835246,1747827076333,-420.0,0.0003452,5]
[361835247,1747827076342,-420.0,0.0003452,5]
[361835248,1747827076351,-566.38,0.0003452,5]
[361835249,1747827076360,-908.79,0.0003452,5]
[361835250,1747827076371,-420.0,0.0003452,5]
[361835251,1747827076380,-420.0,0.0003452,5]
[361835252,1747827076390,-420.0,0.0003452,5]
[361835253,1747827076400,-470.13,0.0003452,5]
[361835254,1747827076409,-420.0,0.0003452,5]
[361835255,1747827076419,-420.0,0.0003452,5]
[361835256,1747827076428,-684.18,0.0003452,5]
[361835257,1747827076437,-420.0,0.0003452,5]
[361835258,1747827076446,-420.0,0.0003452,5]
[361835259,1747827076456,-511.84,0.0003452,5]
[361835260,1747827076466,-420.0,0.0003452,5]
[361835261,1747827076475,-420.0,0.0003452,5]
[361835262,1747827076484,-420.0,0.0003452,5]
[361835263,1747827076494,-4969.67,0.0003452,5]
[361835264,1747827076504,-420.0,0.0003452,5]
[361835265,1747827076513,-1780.73,0.0003452,5]
[361835266,1747827076523,-420.0,0.0003452,5]
[361835267,1747827076531,-2063.59,0.0003452,5]
[361835268,1747827076540,-866.09,0.0003452,5]
[361835269,1747827076548,-420.0,0.0003452,5]
[361835270,1747827076556,-420.0,0.0003452,5]
[361835271,1747827076565,-420.0,0.0003452,5]
[361835272,1747827076574,-420.0,0.0003452,5]
[361835273,1747827076584,-593.02,0.0003452,5]
[361835274,1747827076593,-420.0,0.0003452,5]
[361835275,1747827076601,-1691.23,0.0003452,5]
[361835276,1747827076610,-823.81,0.0003452,5]
[361835277,1747827076620,-1222.13,0.0003452,5]
[361835278,1747827076630,-420.0,0.0003452,5]
[361835279,1747827076639,-632.72,0.0003452,5]
[361835280,1747827076648,-420.0,0.0003452,5]
[361835281,1747827076657,-1212.6,0.0003452,5]
[361835282,1747827076667,-899.54,0.0003452,5]
[361835283,1747827076678,-420.0,0.0003452,5]
[361835284,1747827076688,-553.14,0.0003452,5]
[361835285,1747827076697,-420.0,0.0003452,5]
[361835286,1747827076707,-14631.66,0.0003452,5]
[361835287,1747827076718,-420.0,0.0003452,5]
[361835288,1747827076728,-2455.33,0.0003452,5]
[361835289,1747827076738,-687.17,0.0003452,5]
[361835290,1747827076748,-510.0,0.0003452,5]
[361835291,1747827076758,-1819.43,0.0003452,5]
[361835292,1747827076768,-737.01,0.0003452,5]
[361835293,1747827076778,-570.3,0.0003452,5]
[361835294,1747827076787,-3896.68,0.0003452,5]
[361835295,1747827076797,-420.0,0.0003452,5]
[361835296,1747827076807,-420.0,0.0003452,5]
[361835297,1747827076818,-539.51,0.0003452,5]
[361835298,1747827076828,-1414.29,0.0003452,5]
[361835299,1747827076838,-420.0,0.0003452,5]
[361835300,1747827076849,-3151.73,0.0003452,5]
[361835301,1747827076859,-420.0,0.0003452,5]
[361835302,1747827076869,-14144.26,0.0003452,5]
[361835303,1747827076879,-420.0,0.0003452,5]
[361835304,1747827076889,-8547.26,0.0003452,5]
[361835305,1747827076900,-197.26861422,0.0003452,5]
[361835306,1747827076911,-420.0,0.0003452,5]
[361835307,1747827076921,-4415.45,0.0003452,5]
[361835308,1747827076931,-1230.64,0.0003452,5]
[361835309,1747827076942,-555.55,0.0003452,5]
[361835310,1747827076952,-1703.83,0.0003452,5]
[361835311,1747827076962,-420.0,0.0003452,5]
[361835312,1747827076972,-257.54594041,0.0003452,5]
[361835313,1747827076982,-6937.33,0.0003452,5]
[361835314,1747827076991,-420.0,0.0003452,5]
[361835315,1747827077001,-420.0,0.0003452,5]
[361835316,1747827077010,-420.0,0.0003452,5]
[361835317,1747827077020,-15406.07,0.0003452,5]
[361835318,1747827077030,-634.69,0.0003452,5]
[361835319,1747827077040,-420.0,0.0003452,5]
[361835320,1747827077052,-1151.78,0.0003452,5]
[361835321,1747827077062,-420.0,0.0003452,5]
[361835322,1747827077071,-29896.52,0.0003452,5]
[361835323,1747827077081,-7119.22,0.0003452,5]
[361835324,1747827077090,-4554.6,0.0003452,5]
[361835325,1747827077100,-453.24,0.0003452,5]
[361835326,1747827077110,-923.2,0.0003452,5]
[361835327,1747827077120,-1187.43,0.0003452,5]
[361835328,1747827077130,-735.32,0.0003452,5]
[361835329,1747827077139,-1687.56,0.0003452,5]
[361835330,1747827077148,-1027.32,0.0003452,5]
[361835331,1747827077158,-420.0,0.0003452,5]
[361835332,1747827077168,-422.99,0.0003452,5]
[361835333,1747827077182,-527.14669707,0.0003452,5]
[361835334,1747827077194,-2411.69,0.0003452,5]
[361835335,1747827077206,-484.26298108,0.0003452,5]
[361835336,1747827077218,-420.0,0.0003452,5]
[361835337,1747827077228,-1168.04,0.0003452,5]
[361835338,1747827077237,-420.0,0.0003452,5]
[361835339,1747827077247,-2041.94,0.0003452,5]
[361835340,1747827077258,-1081.8,0.0003452,5]
[361835341,1747827077269,-987.93,0.0003452,5]
[361835342,1747827077279,-1021.78,0.0003452,5]
[361835343,1747827077288,-990.58,0.0003452,5]
[361835344,1747827077298,-836.48,0.0003452,5]
[361835345,1747827077308,-420.0,0.0003452,5]
[361835346,1747827077319,-1734.22,0.0003452,5]
[361835347,1747827077329,-420.0,0.0003452,5]
[361835348,1747827077338,-3677.77,0.0003452,5]
[361835349,1747827077348,-420.0,0.0003452,5]
[361835350,1747827077358,-1825.28,0.0003452,5]
[361835351,1747827077523,-3633.83,0.0003452,5]
[361835352,1747827077546,-420.0,0.0003452,5]
[361835353,1747827077556,-420.0,0.0003452,5]
[361835354,1747827077567,-593.9,0.0003452,5]
[361835355,1747827077577,-5549.41,0.0003452,5]
[361835356,1747827077588,-420.0,0.0003452,5]
[361835357,1747827077598,-420.0,0.0003452,5]
[361835358,1747827077607,-420.0,0.0003452,5]
[361835359,1747827077617,-638.11,0.0003452,2]
[361835360,1747827077627,-420.0,0.0003452,5]
[361835361,1747827077637,-2012.33,0.0003452,5]
[361835362,1747827077647,-2891.24,0.0003452,5]
[361835363,1747827077657,-420.0,0.0003452,5]
[361835364,1747827077667,-420.0,0.0003452,5]
[361835365,1747827077677,-420.0,0.0003452,5]
[361835366,1747827077687,-337.43119643,0.0003452,5]
[361835367,1747827077698,-188.61148865,0.0003452,5]
[361835368,1747827077709,-3346.56,0.0003452,5]
[361835369,1747827077723,-709.25,0.0003452,5]
[361835370,1747827077734,-420.0,0.0003452,5]
[361835371,1747827077744,-420.0,0.0003452,5]
[361835372,1747827077756,-420.63,0.0003452,5]
[361835373,1747827077767,-420.0,0.0003452,5]
[361835374,1747827077778,-420.0,0.0003452,5]
[361835375,1747827077789,-420.0,0.0003452,5]
[361835376,1747827077800,-1095.31,0.0003452,5]
[361835377,1747827077811,-470.99,0.0003452,5]
[361835378,1747827077822,-451.82,0.0003452,5]
[361835379,1747827077832,-426.33,0.0003452,5]
[361835380,1747827077842,-1236.71,0.0003452,5]
[361835381,1747827077852,-2495.64,0.0003452,5]
[361835382,1747827077862,-420.0,0.0003452,5]
[361835383,1747827077872,-420.0,0.0003452,5]
[361835384,1747827077883,-420.0,0.0003452,5]
[361835385,1747827077894,-1160.66,0.0003452,5]
[361835386,1747827077905,-420.0,0.0003452,5]
[361835387,1747827077919,-317.1289544,0.0003452,5]
[361835388,1747827077932,-4059.65,0.0003452,5]
[361835389,1747827077945,-420.0,0.0003452,5]
[361835390,1747827077954,-561.7,0.0003452,5]
[361835391,1747827077964,-420.0,0.0003452,5]
[361835392,1747827077973,-420.0,0.0003452,5]
[361835393,1747827077982,-6775.14,0.0003452,5]
[361835394,1747827077992,-420.0,0.0003452,5]
[361835395,1747827078001,-3582.79,0.0003452,5]
[361835396,1747827078011,-420.0,0.0003452,2]
[361835397,1747827078021,-477.4,0.0003452,5]
[361835398,1747827078031,-420.0,0.0003452,5]
[361835399,1747827078042,-420.0,0.0003452,5]
[361835400,1747827078052,-1722.63,0.0003452,5]
[361835401,1747827078062,-420.0,0.0003452,5]
[361835402,1747827078072,-1143.17,0.0003452,5]
[361835403,1747827078082,-1654.14,0.0003452,5]
[361835404,1747827078092,-567.49,0.0003452,5]
[361835405,1747827078102,-471.02,0.0003452,5]
[361835406,1747827078112,-933.58,0.0003452,5]
[361835407,1747827078122,-2021.44,0.0003452,5]
[361835408,1747827078132,-420.0,0.0003452,5]
[361835409,1747827078144,-420.0,0.0003452,5]
[361835410,1747827078154,-4350.06,0.0003452,5]
[361835411,1747827078164,-749.3,0.0003452,5]
[361835412,1747827078173,-814.46,0.0003452,5]
[361835413,1747827078184,-801.9,0.0003452,5]
[361835414,1747827078193,-587.68,0.0003452,5]
[361835415,1747827078203,-2767.02,0.0003452,5]
[361835416,1747827078213,-420.0,0.0003452,5]
[361835417,1747827078223,-200.0,0.00034522,120]
[361835418,1747827078233,-352.51,0.00034538,120]
[361835419,1747827078243,-1000.0,0.00034542,2]
[361835420,1747827078253,-150.0,0.00034573,5]
[361835421,1747827078263,-18329.56,0.000346,14]
[361835422,1747827078273,-1891.766,0.00034653,39]
[361835423,1747827078284,-168.236,0.00034653,39]
[361835424,1747827078293,-162.380719,0.00034692,2]
[361835425,1747827078303,-719.04747942,0.00034692,2]
[361835426,1747827078314,-1289.58892491,0.00034692,2]
[361835427,1747827078323,-170.435642,0.00034694,2]
[361835428,1747827078334,-801.85129955,0.00034694,2]
[361835429,1747827078343,-302.63,0.000347,14]
[361835430,1747827078353,-150.0,0.000347,20]
[361835431,1747827078363,-10471.73412685,0.000347,30]
[361835432,1747827078373,-500.0,0.00034793,5]
[361835433,1747827078383,-420.0,0.00034794,5]
[361835434,1747827078392,-420.0,0.00034794,5]
[361835435,1747827078402,-420.0,0.00034794,5]
[361835436,1747827078412,-852.08,0.00034794,5]
[361835437,1747827078422,-838.29,0.00034794,5]
[361835438,1747827078432,-756.34,0.00034794,5]
[361835439,1747827078442,-456.81,0.00034794,5]
[361835440,1747827078452,-420.0,0.00034794,5]
[361835441,1747827078461,-480.11,0.00034794,5]
[361835442,1747827078471,-420.0,0.00034794,5]
[361835443,1747827078480,-420.0,0.00034794,5]
[361835444,1747827078490,-803.54,0.00034794,5]
[361835445,1747827078500,-1218.18,0.00034794,5]
[361835446,1747827078510,-942.88,0.00034794,5]
[361835447,1747827078521,-797.13,0.00034794,5]
[361835448,1747827078530,-420.0,0.00034794,5]
[361835449,1747827078540,-420.0,0.00034794,5]
[361835450,1747827078551,-1263.34,0.00034794,5]
[361835451,1747827078560,-420.0,0.00034794,5]
[361835452,1747827078570,-420.0,0.00034794,5]
[361835453,1747827078581,-599.61,0.00034794,5]
[361835454,1747827078590,-1887.18,0.00034794,5]
[361835455,1747827078599,-537.6,0.00034794,5]
[361835456,1747827078610,-181.61060183,0.00034794,5]
[361835457,1747827078619,-420.0,0.00034794,5]
[361835458,1747827078628,-420.0,0.00034794,5]
[361835459,1747827078638,-420.0,0.00034794,5]
[361835460,1747827078648,-995.6,0.00034794,5]
[361835461,1747827078658,-248.56528984,0.00034794,5]
[361835462,1747827078667,-420.0,0.00034794,5]
[361835463,1747827078677,-420.0,0.00034794,5]
[361835464,1747827078687,-692.22,0.00034794,5]
[361835465,1747827078697,-420.0,0.00034794,5]
[361835466,1747827078709,-584.19,0.00034794,5]
[361835467,1747827078719,-420.0,0.00034794,5]
[361835468,1747827078729,-420.0,0.00034794,5]
[361835469,1747827078739,-847.72,0.00034794,5]
[361835470,1747827078749,-674.03,0.00034794,5]
[361835471,1747827078759,-420.0,0.00034794,5]
[361835472,1747827078769,-627.96,0.00034794,5]
[361835473,1747827078779,-420.0,0.00034794,5]
[361835474,1747827078790,-524.74,0.00034794,5]
[361835475,1747827078800,-420.0,0.00034794,5]
[361835476,1747827078810,-420.0,0.00034794,5]
[361835477,1747827078820,-1128.54,0.00034794,5]
[361835478,1747827078830,-420.0,0.00034794,5]
[361835479,1747827078839,-814.71,0.00034794,5]
[361835480,1747827078849,-1370.32,0.00034794,5]
[361835481,1747827078859,-420.0,0.00034794,5]
[361835482,1747827078869,-269.90969938,0.00034794,5]
[361835483,1747827078878,-574.94,0.00034794,5]
[361835484,1747827078888,-455.14,0.00034794,5]
[361835485,1747827078900,-1337.7,0.00034794,5]
[361835486,1747827078910,-478.34,0.00034794,5]
[361835487,1747827078921,-420.0,0.00034794,5]
[361835488,1747827078931,-504.02,0.00034794,5]
[361835489,1747827078942,-420.0,0.00034794,5]
[361835490,1747827078952,-565.8,0.00034794,5]
[361835491,1747827078961,-728.55,0.00034794,5]
[361835492,1747827078971,-420.0,0.00034794,5]
[361835493,1747827078981,-732.9,0.00034794,5]
[361835494,1747827078991,-420.0,0.00034794,5]
[361835495,1747827079001,-1165.23,0.00034794,5]
[361835496,1747827079011,-1378.94,0.00034794,5]
[361835497,1747827079021,-2721.26,0.00034794,5]
[361835498,1747827079031,-1472.56,0.00034794,5]
[361835499,1747827079041,-420.0,0.00034794,5]
[361835500,1747827079051,-815.36,0.00034794,5]
[361835501,1747827079061,-420.0,0.00034794,5]
[361835502,1747827079071,-3421.67,0.00034794,5]
[361835503,1747827079081,-420.0,0.00034794,5]
[361835504,1747827079091,-458.03826869,0.00034794,5]
[361835505,1747827079101,-420.0,0.00034794,5]
[361835506,1747827079111,-367.43072094,0.00034794,5]
[361835507,1747827079122,-239.28687583,0.00034794,5]
[361835508,1747827079131,-2581.6,0.00034794,5]
[361835509,1747827079142,-3315.32,0.00034794,5]
[361835510,1747827079152,-1137.48,0.00034794,5]
[361835511,1747827079162,-1399.99,0.00034794,5]
[361835512,1747827079172,-2580.06,0.00034794,5]
[361835513,1747827079182,-594.98,0.00034794,5]
[361835514,1747827079193,-1980.3,0.00034794,5]
[361835515,1747827079202,-2964.03,0.00034794,5]
[361835516,1747827079212,-420.0,0.00034794,5]
[361835517,1747827079223,-420.0,0.00034794,5]
[361835518,1747827079232,-461.83,0.00034794,5]
[361835519,1747827079242,-1561.77,0.00034794,5]
[361835520,1747827079252,-420.0,0.00034794,5]
[361835521,1747827079262,-950.46,0.00034794,5]